bitfinex/quotes_BTCUSD_20250526
["timestamp","ask_amount","ask_price","bid_price","bid_amount"]
[1748236338103,0.81085676,109230.0,109220.0,0.002]
[1748236338531,0.25934556,109230.0,109220.0,0.002]
[1748236339683,0.26134556,109230.0,109220.0,0.002]
[1748236343168,0.25534556,109230.0,109220.0,0.002]
[1748236346268,0.27294556,109230.0,109220.0,0.002]
[1748236348696,0.12674556,109230.0,109220.0,0.002]
[1748236348850,0.27523394,109230.0,109220.0,0.002]
[1748236349057,0.27294556,109230.0,109220.0,0.002]
[1748236350508,0.26694556,109230.0,109220.0,0.002]
[1748236353528,0.81845676,109230.0,109220.0,0.002]
[1748236353919,0.26694556,109230.0,109220.0,0.002]
[1748236358177,0.26094556,109230.0,109220.0,0.002]
[1748236365314,0.25494556,109230.0,109220.0,0.002]
[1748236368724,0.27354556,109230.0,109220.0,0.002]
[1748236372295,0.26754556,109230.0,109220.0,0.002]
[1748236375337,0.24894556,109230.0,109220.0,0.002]
[1748236378955,0.26754556,109230.0,109220.0,0.002]
[1748236379096,0.12134556,109230.0,109220.0,0.002]
[1748236379303,1.43997914,109230.0,109220.0,0.002]
[1748236379506,0.88617956,109230.0,109220.0,0.002]
[1748236379773,0.73997956,109230.0,109220.0,0.002]
[1748236379926,1.03881956,109230.0,109220.0,0.002]
[1748236380126,0.18846836,109230.0,109220.0,0.002]
[1748236380365,1.03881956,109230.0,109220.0,0.002]
[1748236382698,0.48730836,109230.0,109220.0,0.002]
[1748236382881,0.96569676,109230.0,109220.0,0.002]
[1748236386671,1.51720796,109230.0,109220.0,0.002]
[1748236386874,0.96569676,109230.0,109220.0,0.002]
[1748236387084,0.95969676,109230.0,109220.0,0.002]
[1748236387232,0.95869676,109230.0,109220.0,0.002]
[1748236387644,0.95969676,109230.0,109220.0,0.002]
[1748236388459,0.95769676,109230.0,109220.0,0.002]
[1748236388658,0.95969676,109230.0,109220.0,0.002]
[1748236388856,0.95669676,109230.0,109220.0,0.002]
[1748236389030,1.50820796,109230.0,109220.0,0.002]
[1748236389235,1.51420796,109230.0,109220.0,0.002]
[1748236390409,1.52874881,109230.0,109220.0,0.002]
[1748236392650,1.86874881,109230.0,109220.0,0.002]
[1748236393409,1.8942396,109230.0,109220.0,0.002]
[1748236393601,1.89412442,109230.0,109220.0,0.002]
[1748236393807,0.41964731,109230.0,109220.0,0.002]
[1748236394011,0.42601857,109230.0,109220.0,0.002]
[1748236394258,0.97752977,109230.0,109220.0,0.002]
[1748236394607,0.96266158,109230.0,109220.0,0.002]
[1748236396036,0.66374158,109230.0,109220.0,0.002]
[1748236396215,0.96266158,109230.0,109220.0,0.002]
[1748236397712,1.52871363,109230.0,109220.0,0.002]
[1748236400607,0.42569123,109230.0,109220.0,0.002]
[1748236400783,1.52871363,109230.0,109220.0,0.002]
[1748236401885,1.52271363,109230.0,109220.0,0.002]
[1748236406400,0.97120243,109230.0,109220.0,0.002]
[1748236406906,1.52271363,109230.0,109220.0,0.002]
[1748236407902,1.53760531,109230.0,109220.0,0.002]
[1748236409043,1.55463424,109230.0,109220.0,0.002]
[1748236409545,1.54863424,109230.0,109220.0,0.002]
[1748236409694,1.54563424,109230.0,109220.0,0.002]
[1748236410105,1.54863424,109230.0,109220.0,0.003]
[1748236410778,1.54563424,109230.0,109220.0,0.003]
[1748236411285,1.55063424,109230.0,109220.0,0.003]
[1748236414237,0.44761184,109230.0,109220.0,0.003]
[1748236414445,1.55063424,109230.0,109220.0,0.003]
[1748236417420,1.54463424,109230.0,109220.0,0.003]
[1748236420741,1.55335713,109230.0,109220.0,0.003]
[1748236424147,0.30409473,109230.0,109220.0,0.003]
[1748236424286,0.98324593,109230.0,109220.0,0.003]
[1748236424899,0.99564593,109230.0,109220.0,0.003]
[1748236426955,1.54715713,109230.0,109220.0,0.003]
[1748236430153,1.59706655,109230.0,109220.0,0.003]
[1748236430847,1.54715713,109230.0,109220.0,0.003]
[1748236431245,1.57459813,109230.0,109220.0,0.003]
[1748236433190,1.63756038,109230.0,109220.0,0.003]
[1748236435166,0.05104085,109220.0,109150.0,0.49788148]
[1748236435380,0.64334514,109210.0,109150.0,0.68742704]
[1748236435551,0.299,109200.0,109150.0,0.71963097]
[1748236435782,0.09183394,109190.0,109150.0,0.71963097]
[1748236436056,0.09183394,109190.0,109150.0,0.19430849]
[1748236436668,0.09188363,109190.0,109150.0,0.19430849]
[1748236437232,0.09188363,109190.0,109150.0,0.20030849]
[1748236437867,0.09188363,109190.0,109150.0,0.19430849]
[1748236438065,0.09288363,109190.0,109150.0,0.20030849]
[1748236438226,0.09288363,109190.0,109170.0,0.0352]
[1748236438437,0.24568363,109190.0,109180.0,0.0352]
[1748236438658,0.39063525,109190.0,109180.0,0.0352]
[1748236438983,0.38463525,109190.0,109180.0,0.0352]
[1748236439518,0.38363525,109190.0,109180.0,0.0352]
[1748236439716,0.38463525,109190.0,109180.0,0.0352]
[1748236439928,0.38363525,109190.0,109180.0,0.0352]
[1748236440104,0.38263525,109190.0,109180.0,0.0352]
[1748236440332,0.38563525,109190.0,109180.0,0.0352]
[1748236440458,0.38563525,109190.0,109180.0,0.0172]
[1748236440806,0.38463525,109190.0,109180.0,0.0172]
[1748236441153,0.38563525,109190.0,109180.0,0.0192]
[1748236441524,0.38563525,109190.0,109180.0,0.0356]
[1748236442321,0.399536,109190.0,109180.0,0.0356]
[1748236443585,0.399536,109190.0,109180.0,0.0192]
[1748236446015,0.393536,109190.0,109180.0,0.0192]
[1748236447120,0.393576,109190.0,109180.0,0.0371]
[1748236449756,0.01695044,109190.0,109180.0,0.0371]
[1748236450142,0.16323044,109190.0,109180.0,0.0371]
[1748236450733,0.01695044,109190.0,109180.0,0.0371]
[1748236450939,0.16323044,109190.0,109180.0,0.0371]
[1748236451143,0.16551882,109190.0,109180.0,0.0371]
[1748236453305,0.15951882,109190.0,109180.0,0.0371]
[1748236454810,0.01323882,109190.0,109180.0,0.0371]
[1748236455030,0.15719044,109190.0,109180.0,0.0371]
[1748236455326,0.14852838,109190.0,109180.0,0.0371]
[1748236456209,0.14852838,109190.0,109140.0,0.19933878]
[1748236456396,0.23807394,109190.0,109150.0,0.36563741]
[1748236456615,0.23578556,109190.0,109150.0,0.10408641]
[1748236456818,0.08954556,109190.0,109150.0,0.10408641]
[1748236457043,0.23578556,109190.0,109150.0,0.13152541]
[1748236457422,0.23678556,109190.0,109150.0,0.13152541]
[1748236457826,0.23778556,109190.0,109150.0,0.13152541]
[1748236458409,0.001,109190.0,109160.0,0.4318353]
[1748236458609,0.14724,109190.0,109160.0,0.42954556]
[1748236458822,0.5515112,109230.0,109180.0,0.64]
[1748236458823,0.044737,109230.0,109180.0,0.64]
[1748236459003,0.25308556,109230.0,109200.0,0.34]
[1748236459252,0.08954556,109230.0,109210.0,0.00228892]
[1748236459460,0.14624,109230.0,109220.0,0.0118]
[1748236459672,0.00228838,109230.0,109220.0,0.0118]
[1748236459888,0.02601154,109240.0,109220.0,0.0118]
[1748236460056,0.00871154,109240.0,109220.0,0.0118]
[1748236460301,0.14910092,109240.0,109230.0,0.0118]
[1748236460513,0.00286092,109240.0,109230.0,0.0118]
[1748236460722,0.00014938,109240.0,109230.0,0.0118]
[1748236462449,0.00514938,109240.0,109230.0,0.0118]
[1748236462731,0.01014938,109240.0,109230.0,0.0128]
[1748236467504,0.00414938,109240.0,109230.0,0.0128]
[1748236470931,0.00414938,109240.0,109230.0,0.001]
[1748236473053,0.02204938,109240.0,109230.0,0.001]
[1748236473432,0.03834938,109240.0,109230.0,0.001]
[1748236474213,0.02204938,109240.0,109230.0,0.001]
[1748236474444,0.01604938,109240.0,109230.0,0.001]
[1748236474756,0.2383228,109250.0,109230.0,0.001]
[1748236474960,0.2383228,109250.0,109230.0,0.0122]
[1748236475380,0.2383228,109250.0,109230.0,0.001]
[1748236475801,0.2403228,109250.0,109230.0,0.001]
[1748236476627,0.2403228,109250.0,109220.0,0.0125]
[1748236476807,0.2423228,109250.0,109220.0,0.01264938]
[1748236477550,0.2547228,109250.0,109220.0,0.01264938]
[1748236477962,0.2567228,109250.0,109220.0,0.01364938]
[1748236480494,0.2403228,109250.0,109220.0,0.01364938]
[1748236480709,0.0172,109240.0,109220.0,0.01364938]
[1748236481507,0.0112,109240.0,109220.0,0.01364938]
[1748236482035,0.0132,109240.0,109220.0,0.01364938]
[1748236482449,0.0132,109240.0,109220.0,0.0135342]
[1748236482609,0.0132,109240.0,109220.0,0.0125342]
[1748236483456,0.002,109240.0,109220.0,0.0125342]
[1748236484255,0.0199,109240.0,109220.0,0.0125342]
[1748236485930,0.0363,109240.0,109220.0,0.0125342]
[1748236488148,0.0363,109240.0,109220.0,0.01134938]
[1748236488652,0.0303,109240.0,109220.0,0.01134938]
[1748236488850,0.0303,109240.0,109220.0,0.04034247]
[1748236491470,0.0303,109240.0,109220.0,0.02914247]
[1748236495661,0.0243,109240.0,109220.0,0.02914247]
[1748236495889,0.0243,109240.0,109220.0,0.04674247]
[1748236502787,0.0183,109240.0,109220.0,0.04674247]
[1748236503324,0.0183,109240.0,109220.0,0.02914247]
[1748236509177,0.0183,109240.0,109220.0,0.04694247]
[1748236509545,0.18266,109250.0,109230.0,0.00228848]
[1748236509866,0.012,109240.0,109220.0,0.14878803]
[1748236510093,0.16466,109250.0,109230.0,0.02899309]
[1748236510766,0.0185,109250.0,109230.0,0.02899309]
[1748236510935,0.0215,109250.0,109230.0,0.02899309]
[1748236511782,0.0175,109240.0,109230.0,0.02899309]
[1748236512899,0.0352,109240.0,109230.0,0.02899309]
[1748236513058,0.0402,109240.0,109230.0,0.02899309]
[1748236516931,0.0342,109240.0,109230.0,0.02899309]
[1748236517546,0.0342,109240.0,109220.0,0.10408641]
[1748236518462,0.0292,109240.0,109220.0,0.10408641]
[1748236518618,0.0312,109240.0,109220.0,0.10408641]
[1748236518962,0.0312,109240.0,109210.0,0.24370178]
[1748236519186,0.03134927,109240.0,109210.0,0.33324734]
[1748236519957,0.02934927,109240.0,109210.0,0.33324734]
[1748236520515,0.02934927,109240.0,109210.0,0.34574734]
[1748236521669,0.02934927,109240.0,109210.0,0.34774734]
[1748236521877,0.02934927,109240.0,109220.0,0.00228844]
[1748236523158,0.03134927,109240.0,109220.0,0.00228844]
[1748236523565,0.03134927,109240.0,109210.0,0.30920856]
[1748236524117,0.02534927,109240.0,109210.0,0.30920856]
[1748236524478,0.02334927,109240.0,109210.0,0.30920856]
[1748236524819,0.02334927,109240.0,109210.0,0.31120856]
[1748236527355,0.00014927,109240.0,109220.0,0.03768844]
[1748236527941,0.03614927,109240.0,109220.0,0.03768844]
[1748236528147,0.03614927,109240.0,109220.0,0.02028844]
[1748236528355,0.03614927,109240.0,109220.0,0.00228844]
[1748236528514,0.03814927,109240.0,109220.0,0.00228844]
[1748236528969,0.03814927,109240.0,109230.0,0.02922161]
[1748236530623,0.01844927,109240.0,109230.0,0.02922161]
[1748236531056,0.02344927,109240.0,109230.0,0.02922161]
[1748236531211,0.03554927,109240.0,109230.0,0.02922161]
[1748236539021,0.02954927,109240.0,109230.0,0.02922161]
[1748236540967,0.02954927,109240.0,109230.0,0.03151006]
[1748236545018,0.02954927,109240.0,109230.0,0.02922161]
[1748236545883,0.02354927,109240.0,109230.0,0.02922161]
[1748236553093,0.01754927,109240.0,109230.0,0.02922161]
[1748236555947,0.03574927,109240.0,109230.0,0.02922161]
[1748236556150,0.01754927,109240.0,109230.0,0.02922161]
[1748236560004,0.01154927,109240.0,109230.0,0.02922161]
[1748236562344,0.03034927,109240.0,109230.0,0.02922161]
[1748236566007,0.01154927,109240.0,109230.0,0.02922161]
[1748236567250,0.00554927,109240.0,109230.0,0.02922161]
[1748236569230,0.02434927,109240.0,109230.0,0.02922161]
[1748236574266,0.01834927,109240.0,109230.0,0.02922161]
[1748236577370,0.03664927,109240.0,109230.0,0.02922161]
[1748236580333,0.05224927,109240.0,109230.0,0.02922161]
[1748236581316,0.04624927,109240.0,109230.0,0.02922161]
[1748236588440,0.04024927,109240.0,109230.0,0.02922161]
[1748236589460,0.04024927,109240.0,109230.0,0.03151018]
[1748236589716,0.00634927,109240.0,109230.0,0.04751018]
[1748236590835,0.00634927,109240.0,109230.0,0.04522161]
[1748236593102,0.00634927,109240.0,109230.0,0.02922161]
[1748236594665,0.17996,109250.0,109230.0,0.02922161]
[1748236594867,0.18000976,109250.0,109230.0,0.02922161]
[1748236595574,0.17400976,109250.0,109230.0,0.02922161]
[1748236595806,0.02984976,109250.0,109230.0,0.04482161]
[1748236596193,0.03084976,109250.0,109230.0,0.04482161]
[1748236598166,0.02984976,109250.0,109230.0,0.04482161]
[1748236603634,0.02984976,109250.0,109230.0,0.02922161]
[1748236603943,0.02384976,109250.0,109230.0,0.02922161]
[1748236607752,0.032,109240.0,109230.0,0.02922161]
[1748236608974,0.034,109240.0,109230.0,0.02922161]
[1748236609273,0.03488486,109240.0,109230.0,0.02922161]
[1748236610949,0.02888486,109240.0,109230.0,0.02922161]
[1748236611175,0.019,109240.0,109230.0,0.02922161]
[1748236617810,0.019,109240.0,109220.0,0.3727]
[1748236617998,0.003,109240.0,109220.0,0.3727]
[1748236618429,0.0184,109240.0,109220.0,0.3578]
[1748236618651,0.0184,109240.0,109230.0,0.02922208]
[1748236619039,0.0174,109240.0,109230.0,0.02922208]
[1748236619408,0.002,109240.0,109230.0,0.02922208]
[1748236619580,0.1071837,109250.0,109230.0,0.02922208]
[1748236619731,0.001,109240.0,109230.0,0.02922208]
[1748236620475,0.0158,109240.0,109230.0,0.02922208]
[1748236620685,0.002,109240.0,109230.0,0.02922208]
[1748236620842,0.003,109240.0,109230.0,0.02922208]
[1748236625032,0.1211837,109250.0,109230.0,0.02922208]
[1748236626573,0.1221837,109250.0,109230.0,0.02922208]
[1748236627024,0.1241837,109250.0,109230.0,0.02922208]
[1748236627896,0.2380437,109250.0,109230.0,0.06082208]
[1748236628111,0.08959532,109250.0,109230.0,0.06082208]
[1748236628292,0.23575532,109250.0,109230.0,0.06082208]
[1748236628451,0.26625532,109250.0,109230.0,0.06082208]
[1748236630933,0.12009532,109250.0,109220.0,0.002]
[1748236631159,0.26625532,109250.0,109220.0,0.002]
[1748236632012,0.26525532,109250.0,109220.0,0.002]
[1748236632213,0.25725532,109250.0,109220.0,0.003]
[1748236634044,0.24215532,109250.0,109220.0,0.0346]
[1748236634269,0.0164,109240.0,109220.0,0.0346]
[1748236634980,0.0064,109240.0,109220.0,0.0346]
[1748236635187,0.24215532,109250.0,109220.0,0.0346]
[1748236635511,0.24215532,109250.0,109220.0,0.0336]
[1748236635900,0.24215532,109250.0,109220.0,0.0346]
[1748236636121,0.24215532,109250.0,109220.0,0.0336]
[1748236636461,0.24215532,109250.0,109220.0,0.0346]
[1748236637288,0.09599532,109250.0,109230.0,0.0315]
[1748236637487,0.16156,109250.0,109230.0,0.0315]
[1748236638412,0.0154,109250.0,109230.0,0.0315]
[1748236638822,0.0174,109250.0,109230.0,0.0315]
[1748236639188,0.0114,109250.0,109230.0,0.0315]
[1748236639403,0.002,109250.0,109230.0,0.0315]
[1748236641106,0.002,109250.0,109230.0,0.03378843]
[1748236642084,0.002,109250.0,109230.0,0.06301313]
[1748236642503,0.0174,109250.0,109230.0,0.06301313]
[1748236643330,0.002,109250.0,109230.0,0.06301313]
[1748236643736,0.002,109250.0,109230.0,0.0607247]
[1748236643737,0.0174,109250.0,109230.0,0.0607247]
[1748236645367,0.0332,109250.0,109230.0,0.0607247]
[1748236645591,0.0332,109250.0,109230.0,0.06301313]
[1748236646338,0.0158,109250.0,109230.0,0.06301313]
[1748236646805,0.0158,109250.0,109230.0,0.0607247]
[1748236648973,0.16344838,109260.0,109230.0,0.0607247]
[1748236649164,0.25299394,109260.0,109230.0,0.06077446]
[1748236649379,0.26610556,109260.0,109230.0,0.06077446]
[1748236653004,0.00228838,109250.0,109230.0,0.06077446]
[1748236653453,0.26239394,109260.0,109230.0,0.06077446]
[1748236653696,0.11623394,109260.0,109230.0,0.06077446]
[1748236653919,0.26239394,109260.0,109230.0,0.06306289]
[1748236654141,0.001,109250.0,109230.0,0.06306289]
[1748236654340,0.001,109250.0,109230.0,0.06077446]
[1748236654752,0.26239394,109260.0,109230.0,0.06077446]
[1748236654963,0.26339394,109260.0,109230.0,0.06077446]
[1748236655357,0.26239394,109260.0,109230.0,0.06077446]
[1748236655731,0.001,109250.0,109230.0,0.06077446]
[1748236657002,0.26239394,109260.0,109230.0,0.06077446]
[1748236657407,0.26339394,109260.0,109230.0,0.06077446]
[1748236657767,0.26239394,109260.0,109230.0,0.06077446]
[1748236658026,0.001,109250.0,109230.0,0.06077446]
[1748236658532,0.26239394,109260.0,109230.0,0.06077446]
[1748236658879,0.26339394,109260.0,109230.0,0.06077446]
[1748236659076,0.11723394,109260.0,109230.0,0.03156289]
[1748236659378,0.26339394,109260.0,109240.0,0.0316]
[1748236659565,0.26339394,109260.0,109240.0,0.0161]
[1748236659770,0.26339394,109260.0,109230.0,0.06366289]
[1748236660144,0.26339394,109260.0,109240.0,0.0162]
[1748236660346,0.25639394,109260.0,109240.0,0.0162]
[1748236660560,0.25739394,109260.0,109240.0,0.0325]
[1748236660766,0.25739394,109260.0,109230.0,0.03156289]
[1748236660993,0.25739394,109260.0,109230.0,0.06406289]
[1748236661627,0.25839394,109260.0,109230.0,0.06406289]
[1748236662034,0.25939394,109260.0,109230.0,0.06406289]
[1748236664020,0.11323394,109260.0,109230.0,0.06406289]
[1748236664224,0.25939394,109260.0,109230.0,0.06406289]
[1748236666085,0.0151,109250.0,109230.0,0.06406289]
[1748236667348,0.0161,109250.0,109230.0,0.06406289]
[1748236667569,0.0101,109250.0,109230.0,0.06406289]
[1748236667739,0.001,109250.0,109230.0,0.06406289]
[1748236668991,0.00328843,109250.0,109220.0,0.1518]
[1748236669152,0.03697952,109250.0,109220.0,0.1518]
[1748236670182,0.03597952,109250.0,109220.0,0.1518]
[1748236670843,0.03597952,109250.0,109220.0,0.1528]
[1748236672147,0.03597952,109250.0,109220.0,0.184]
[1748236674350,0.03597952,109250.0,109220.0,0.18388486]
[1748236674489,0.03,109240.0,109220.0,0.00088486]
[1748236674679,0.024,109230.0,109220.0,0.00088486]
[1748236674896,0.015,109230.0,109220.0,0.00088486]
[1748236675106,0.09392508,109250.0,109220.0,0.00088486]
[1748236675315,0.015,109240.0,109220.0,0.00088486]
[1748236676575,0.015,109240.0,109210.0,0.28413883]
[1748236676917,0.015,109240.0,109220.0,0.001]
[1748236677171,0.015,109240.0,109210.0,0.28413883]
[1748236677560,0.015,109240.0,109220.0,0.001]
[1748236677762,0.0303,109240.0,109220.0,0.001]
[1748236678190,0.0303,109240.0,109210.0,0.28613883]
[1748236678496,0.0303,109240.0,109210.0,0.28913883]
[1748236679296,0.0303,109240.0,109210.0,0.28713883]
[1748236679528,0.03023666,109240.0,109210.0,0.28713883]
[1748236679702,0.03023666,109240.0,109210.0,0.28413883]
[1748236680034,0.03023666,109240.0,109220.0,0.001]
[1748236680263,0.0153,109240.0,109210.0,0.28613883]
[1748236680693,0.0153,109240.0,109230.0,0.02922014]
[1748236681828,0.0093,109240.0,109230.0,0.02922014]
[1748236682711,0.0252,109240.0,109230.0,0.02922014]
[1748236683435,0.0262,109240.0,109220.0,0.02922014]
[1748236683935,0.0165,109230.0,109220.0,0.02922014]
[1748236684966,0.0165,109230.0,109220.0,0.03022014]
[1748236685165,0.0165,109230.0,109220.0,0.02922014]
[1748236685467,0.0165,109230.0,109220.0,0.03022014]
[1748236688784,0.0105,109230.0,109220.0,0.03022014]
[1748236689486,0.0093,109240.0,109220.0,0.03022014]
[1748236690757,0.0093,109240.0,109220.0,0.02922014]
[1748236691242,0.0093,109240.0,109220.0,0.03022014]
[1748236691820,0.0258,109240.0,109220.0,0.37022014]
[1748236694457,0.0258,109240.0,109220.0,0.38662014]
[1748236694761,0.0258,109240.0,109220.0,0.37022014]
[1748236695489,0.0258,109240.0,109220.0,0.38552014]
[1748236695829,0.0198,109240.0,109220.0,0.38552014]
[1748236696407,0.0165,109240.0,109230.0,0.02922014]
[1748236696646,0.16445109,109250.0,109230.0,0.04740868]
[1748236696880,0.16445109,109250.0,109230.0,0.04512014]
[1748236697086,0.16445109,109250.0,109230.0,0.02922014]
[1748236697738,0.001,109240.0,109230.0,0.02922014]
[1748236697953,0.16445109,109250.0,109230.0,0.02922014]
[1748236698302,0.16545109,109250.0,109230.0,0.02922014]
[1748236698538,0.001,109240.0,109230.0,0.02922014]
[1748236698923,0.18075109,109250.0,109230.0,0.02922014]
[1748236699378,0.18175109,109250.0,109230.0,0.02922014]
[1748236699781,0.001,109240.0,109230.0,0.02922014]
[1748236701324,0.18175109,109250.0,109230.0,0.02922014]
[1748236701552,0.001,109240.0,109230.0,0.02922014]
[1748236701755,0.002,109240.0,109230.0,0.02922014]
[1748236702264,0.001,109240.0,109230.0,0.02922014]
[1748236702873,0.03287952,109250.0,109230.0,0.02922014]
[1748236703215,0.03387952,109250.0,109230.0,0.02922014]
[1748236703441,0.03287952,109250.0,109230.0,0.02922014]
[1748236703615,0.03287952,109250.0,109230.0,0.04562014]
[1748236703845,0.001,109240.0,109230.0,0.04562014]
[1748236704048,0.03187952,109250.0,109230.0,0.04562014]
[1748236704353,0.03287952,109250.0,109230.0,0.04562014]
[1748236704775,0.001,109240.0,109230.0,0.04562014]
[1748236705153,0.03187952,109250.0,109230.0,0.04562014]
[1748236705365,0.03287952,109250.0,109230.0,0.04562014]
[1748236705960,0.03187952,109250.0,109230.0,0.04562014]
[1748236706116,0.001,109240.0,109230.0,0.04562014]
[1748236707690,0.03187952,109250.0,109230.0,0.04562014]
[1748236708068,0.03287952,109250.0,109230.0,0.04562014]
[1748236708370,0.03187952,109250.0,109230.0,0.04562014]
[1748236708774,0.001,109240.0,109230.0,0.04562014]
[1748236709207,0.03187952,109250.0,109230.0,0.04562014]
[1748236709478,0.03287952,109250.0,109230.0,0.04562014]
[1748236709684,0.01429109,109250.0,109230.0,0.04562014]
[1748236709923,0.01429109,109250.0,109230.0,0.06092014]
[1748236710227,0.02399109,109250.0,109230.0,0.06092014]
[1748236710427,0.02399109,109250.0,109230.0,0.04562014]
[1748236713623,0.001,109250.0,109230.0,0.0643086]
[1748236713828,0.001,109250.0,109230.0,0.06202014]
[1748236714688,0.17894843,109260.0,109230.0,0.06202014]
[1748236714891,0.26854374,109260.0,109230.0,0.06302014]
[1748236715045,0.26625531,109260.0,109230.0,0.06302014]
[1748236715248,0.00228843,109250.0,109230.0,0.06302014]
[1748236716283,0.00228843,109250.0,109230.0,0.06202014]
[1748236716511,0.26625531,109260.0,109230.0,0.06202014]
[1748236716714,0.26625531,109260.0,109230.0,0.06302014]
[1748236716869,0.26625531,109260.0,109230.0,0.06202014]
[1748236717273,0.26625531,109260.0,109230.0,0.06302014]
[1748236717472,0.26625531,109260.0,109230.0,0.06202014]
[1748236717951,0.26625531,109260.0,109230.0,0.06302014]
[1748236718798,0.11409531,109260.0,109240.0,0.0155]
[1748236718978,0.26254374,109260.0,109240.0,0.0155]
[1748236719195,0.26025531,109260.0,109240.0,0.0155]
[1748236720617,0.26125531,109260.0,109240.0,0.0155]
[1748236723313,0.11509531,109260.0,109240.0,0.0155]
[1748236723516,0.09288374,109260.0,109240.0,0.0318]
[1748236723719,0.23904374,109260.0,109240.0,0.0318]
[1748236723961,0.23675531,109260.0,109240.0,0.0318]
[1748236725379,0.26905531,109260.0,109220.0,0.002]
[1748236725715,0.12289531,109260.0,109230.0,0.0011441]
[1748236725928,0.0172,109270.0,109240.0,0.0158]
[1748236726138,0.002,109270.0,109250.0,0.01694318]
[1748236726360,0.002,109270.0,109250.0,0.255024]
[1748236726573,0.002,109270.0,109250.0,0.0158]
[1748236727183,0.002,109270.0,109260.0,0.00114278]
[1748236727413,0.002,109270.0,109260.0,0.01684278]
[1748236727839,0.002,109270.0,109260.0,0.0157]
[1748236728189,0.002,109270.0,109260.0,0.0315]
[1748236728840,0.002,109270.0,109260.0,0.0325]
[1748236729309,0.002,109270.0,109260.0,0.001]
[1748236729514,0.002,109270.0,109260.0,0.002]
[1748236730460,0.002,109270.0,109260.0,0.01316841]
[1748236730845,0.002,109270.0,109260.0,0.002]
[1748236733615,0.03125972,109280.0,109260.0,0.002]
[1748236733947,0.03297678,109280.0,109260.0,0.002]
[1748236734420,0.03297678,109280.0,109260.0,0.001]
[1748236734614,0.03297678,109280.0,109250.0,0.27384556]
[1748236735978,0.03297678,109280.0,109250.0,0.27584556]
[1748236736131,0.03297678,109280.0,109250.0,0.30495081]
[1748236736813,0.03297678,109280.0,109250.0,0.30695081]
[1748236737899,0.03297678,109280.0,109250.0,0.31815174]
[1748236740771,0.016,109270.0,109250.0,0.31833474]
[1748236741493,0.01801706,109280.0,109250.0,0.31833474]
[1748236741722,0.01801706,109280.0,109250.0,0.31433474]
[1748236742041,0.01801706,109280.0,109250.0,0.31833474]
[1748236742376,0.01801706,109280.0,109250.0,0.31633474]
[1748236743213,0.01801706,109280.0,109250.0,0.31433474]
[1748236743529,0.01801706,109280.0,109250.0,0.28722949]
[1748236743762,0.01801706,109280.0,109250.0,0.28922949]
[1748236744407,0.03331706,109280.0,109250.0,0.28922949]
[1748236744813,0.03331706,109280.0,109250.0,0.31833474]
[1748236745105,0.00171706,109280.0,109260.0,0.0313]
[1748236745710,0.00171706,109280.0,109260.0,0.03358779]
[1748236746882,0.002,109290.0,109270.0,0.0313]
[1748236748211,0.002,109290.0,109270.0,0.3713]
[1748236749026,0.02931706,109300.0,109270.0,0.3713]
[1748236749407,0.02945373,109300.0,109280.0,0.00228742]
[1748236749619,0.02773667,109300.0,109280.0,0.01838742]
[1748236750228,0.02873667,109300.0,109280.0,0.0161]
[1748236750582,0.02773667,109300.0,109280.0,0.0161]
[1748236750801,0.02973667,109300.0,109280.0,0.0161]
[1748236753796,0.02973667,109300.0,109270.0,0.40060525]
[1748236754654,0.02773667,109300.0,109270.0,0.40060525]
[1748236756154,0.02173667,109300.0,109270.0,0.40060525]
[1748236760272,0.01633667,109300.0,109280.0,0.03328743]
[1748236761467,0.01633667,109300.0,109280.0,0.06239268]
[1748236762769,0.01633667,109300.0,109280.0,0.01828743]
[1748236763119,0.03263667,109300.0,109280.0,0.01828743]
[1748236763452,0.02663667,109300.0,109280.0,0.03328743]
[1748236763749,0.02663667,109300.0,109280.0,0.06239268]
[1748236764490,0.02663667,109300.0,109280.0,0.06010525]
[1748236770275,0.02063667,109300.0,109280.0,0.06010525]
[1748236778201,0.01463667,109300.0,109280.0,0.06010525]
[1748236780793,0.00171706,109310.0,109280.0,0.06010525]
[1748236781001,0.08954556,109310.0,109280.0,0.06024192]
[1748236781173,0.00171706,109300.0,109280.0,0.06024192]
[1748236783353,0.00271706,109300.0,109280.0,0.06024192]
[1748236785269,0.11706262,109310.0,109290.0,0.0151]
[1748236786545,0.11806262,109310.0,109290.0,0.0151]
[1748236787117,0.11806262,109310.0,109280.0,0.06034192]
[1748236788411,0.11706262,109310.0,109280.0,0.06134192]
[1748236788833,0.11706262,109310.0,109280.0,0.06234192]
[1748236791474,0.26314262,109310.0,109280.0,0.06234192]
[1748236793023,0.25714262,109310.0,109280.0,0.06234192]
[1748236794537,0.25784262,109310.0,109280.0,0.06234192]
[1748236795345,0.0315,109300.0,109280.0,0.06234192]
[1748236795924,0.0162,109300.0,109280.0,0.06234192]
[1748236796297,0.0162,109300.0,109280.0,0.06134192]
[1748236796899,0.25724262,109310.0,109280.0,0.06134192]
[1748236797862,0.25724262,109310.0,109280.0,0.06234192]
[1748236798030,0.25724262,109310.0,109280.0,0.06134192]
[1748236798617,0.25724262,109310.0,109280.0,0.01454085]
[1748236798734,0.0322,109300.0,109270.0,0.00496595]
[1748236798939,0.0322,109300.0,109270.0,0.24595151]
[1748236799772,0.0322,109300.0,109280.0,0.001]
[1748236800112,0.0322,109300.0,109270.0,0.24595151]
[1748236800495,0.0322,109300.0,109270.0,0.24795151]
[1748236800707,0.0262,109300.0,109270.0,0.26305151]
[1748236800885,0.0262,109300.0,109270.0,0.26505151]
[1748236801683,0.0262,109300.0,109270.0,0.28135151]
[1748236801911,0.0154,109280.0,109270.0,0.00896595]
[1748236802336,0.0154,109280.0,109270.0,0.004]
[1748236802745,0.0154,109280.0,109270.0,0.002]
[1748236802961,0.0154,109280.0,109260.0,0.0393]
[1748236803185,0.0154,109280.0,109270.0,0.002]
[1748236803813,0.0318,109280.0,109270.0,0.002]
[1748236804022,0.0318,109270.0,109260.0,0.0393]
[1748236804224,0.0298,109270.0,109260.0,0.006]
[1748236804657,0.0298,109270.0,109260.0,0.002]
[1748236805423,0.0298,109270.0,109260.0,0.005]
[1748236806028,0.0278,109270.0,109260.0,0.005]
[1748236806806,0.0278,109270.0,109260.0,0.009]